bitfinex/quotes_BTCUSD_20240828
["timestamp","ask_amount","ask_price","bid_price","bid_amount"]
[1724846100962,0.1447,60180.0,60179.0,0.026]
[1724846100963,0.1397,60180.0,60179.0,0.026]
[1724846101488,0.1397,60180.0,60179.0,0.012]
[1724846101734,0.1397,60180.0,60179.0,0.026]
[1724846102861,0.1397,60180.0,60179.0,0.014]
[1724846102862,0.16575155,60180.0,60179.0,0.014]
[1724846103321,0.16575155,60180.0,60179.0,0.028]
[1724846104271,0.17075155,60180.0,60179.0,0.028]
[1724846104975,0.16575155,60180.0,60179.0,0.028]
[1724846105421,0.16575155,60180.0,60179.0,0.014]
[1724846105921,0.16575155,60180.0,60179.0,0.026]
[1724846106138,0.16575155,60180.0,60179.0,0.012]
[1724846106351,0.16575155,60180.0,60179.0,0.022]
[1724846106794,0.16575155,60180.0,60179.0,0.012]
[1724846107291,0.16575155,60180.0,60177.0,0.05035012]
[1724846107492,0.00415454,60179.0,60177.0,0.0009009]
[1724846108842,0.00415454,60179.0,60177.0,0.0129009]
[1724846109245,0.00415454,60179.0,60177.0,0.0109009]
[1724846109851,0.00415454,60179.0,60177.0,0.0009009]
[1724846110050,0.00415454,60179.0,60177.0,0.0119009]
[1724846110642,0.00415454,60179.0,60178.0,0.04944922]
[1724846111064,0.00415454,60179.0,60177.0,0.0249009]
[1724846111279,0.00415454,60179.0,60177.0,0.07435012]
[1724846111687,0.00415454,60179.0,60177.0,0.0119009]
[1724846111982,0.00415454,60179.0,60177.0,0.06141953]
[1724846112240,0.00415454,60179.0,60178.0,0.013]
[1724846112454,0.14385454,60179.0,60178.0,0.011]
[1724846112664,0.1397,60179.0,60178.0,0.011]
[1724846112884,0.1397,60179.0,60177.0,0.05041953]
[1724846113093,0.00415466,60178.0,60177.0,0.05041953]
[1724846113330,0.00415466,60178.0,60177.0,0.06141953]
[1724846113966,0.00415466,60178.0,60177.0,0.06341953]
[1724846114443,0.14885466,60178.0,60177.0,0.0009009]
[1724846114657,0.14885466,60178.0,60177.0,0.0149009]
[1724846115512,0.14885466,60178.0,60177.0,0.0269009]
[1724846115723,0.15085466,60178.0,60177.0,0.0269009]
[1724846116233,0.15085466,60178.0,60158.0,0.04958722]
[1724846116234,0.005,60159.0,60158.0,0.04958722]
[1724846116450,0.005,60159.0,60155.0,0.0009009]
[1724846116451,0.1479,60156.0,60155.0,0.0009009]
[1724846117373,0.15205667,60156.0,60155.0,0.0009009]
[1724846118017,0.17912084,60156.0,60155.0,0.0009009]
[1724846118873,0.17812084,60156.0,60155.0,0.0019009]
[1724846119092,0.19593292,60156.0,60155.0,0.0019009]
[1724846119312,0.19593292,60156.0,60155.0,0.0009009]
[1724846119313,0.17396417,60156.0,60155.0,0.0009009]
[1724846119540,0.17596417,60156.0,60155.0,0.0009009]
[1724846120066,0.1499,60156.0,60155.0,0.0009009]
[1724846120295,0.15405703,60156.0,60155.0,0.0009009]
[1724846120513,0.15205703,60156.0,60155.0,0.0009009]
[1724846120743,0.16746273,60156.0,60155.0,0.0009009]
[1724846120949,0.16846273,60156.0,60155.0,0.0009009]
[1724846121859,0.16746273,60156.0,60155.0,0.0009009]
[1724846122079,0.15505703,60156.0,60155.0,0.0009009]
[1724846122291,0.16105703,60156.0,60155.0,0.0009009]
[1724846122694,0.15705703,60156.0,60155.0,0.0009009]
[1724846122900,0.16005703,60156.0,60155.0,0.0009009]
[1724846123103,0.18612339,60156.0,60155.0,0.0009009]
[1724846123326,0.20473573,60156.0,60155.0,0.0009009]
[1724846123543,0.19873573,60156.0,60155.0,0.0009009]
[1724846123746,0.20373573,60156.0,60155.0,0.0009009]
[1724846124145,0.20273573,60156.0,60155.0,0.0009009]
[1724846124524,0.20373573,60156.0,60155.0,0.0009009]
[1724846124732,0.18312339,60156.0,60155.0,0.0009009]
[1724846125768,0.17912339,60156.0,60155.0,0.0009009]
[1724846126862,0.18012339,60156.0,60155.0,0.0009009]
[1724846127080,0.18212339,60156.0,60155.0,0.0009009]
[1724846129492,0.18012339,60156.0,60155.0,0.0009009]
[1724846129713,0.18212339,60156.0,60155.0,0.0009009]
[1724846129982,0.15605703,60156.0,60155.0,0.0009009]
[1724846130221,0.1519,60156.0,60155.0,0.0009009]
[1724846131060,0.1499,60156.0,60155.0,0.0009009]
[1724846131315,0.15405717,60156.0,60155.0,0.0009009]
[1724846136368,0.18012331,60156.0,60155.0,0.0009009]
[1724846136946,0.18212331,60156.0,60155.0,0.0009009]
[1724846137763,0.20033564,60156.0,60155.0,0.0009009]
[1724846138653,0.18212331,60156.0,60155.0,0.0009009]
[1724846140964,1.01329331,60156.0,60155.0,0.0009009]
[1724846141186,0.98722717,60156.0,60155.0,0.0009009]
[1724846142111,0.98622717,60156.0,60155.0,0.0009009]
[1724846142348,0.99022717,60156.0,60155.0,0.0009009]
[1724846142842,1.15120241,60156.0,60155.0,0.0009009]
[1724846143305,1.15620241,60156.0,60155.0,0.0009009]
[1724846144208,1.15420241,60156.0,60155.0,0.0009009]
[1724846144423,1.18026861,60156.0,60155.0,0.0009009]
[1724846144866,1.18226861,60156.0,60155.0,0.0009009]
[1724846145780,0.84980061,60156.0,60155.0,0.0009009]
[1724846146426,1.34851061,60156.0,60155.0,0.0009009]
[1724846148563,0.002,60154.0,60152.0,0.166245]
[1724846148771,0.64276695,60153.0,60151.0,0.166247]
[1724846149206,0.64276695,60153.0,60149.0,0.332503]
[1724846149207,0.64276695,60153.0,60152.0,0.166245]
[1724846150041,0.64276695,60153.0,60151.0,0.166248]
[1724846150253,0.64276695,60153.0,60152.0,0.166245]
[1724846151761,0.64376695,60153.0,60152.0,0.166245]
[1724846152176,0.75966758,60153.0,60152.0,0.166245]
[1724846152654,0.75966758,60153.0,60152.0,0.498736]
[1724846153509,0.75966758,60153.0,60152.0,0.50599472]
[1724846153721,0.75966758,60153.0,60152.0,0.83848572]
[1724846153945,0.50986695,60153.0,60152.0,1.17097672]
[1724846154370,0.50986695,60153.0,60152.0,1.50346772]
[1724846154784,0.50571,60153.0,60152.0,1.64596772]
[1724846154999,0.49971,60153.0,60152.0,1.97845872]
[1724846155440,0.49971,60153.0,60152.0,1.98645872]
[1724846155670,0.49971,60153.0,60152.0,1.98745872]
[1724846155888,0.001,60153.0,60152.0,1.98545872]
[1724846156119,0.001,60153.0,60152.0,2.28343677]
[1724846156120,0.002,60153.0,60152.0,2.28343677]
[1724846156342,0.005,60162.0,60161.0,1.306043]
[1724846156559,0.005,60162.0,60161.0,1.31346159]
[1724846157463,0.03105955,60162.0,60161.0,1.31346159]
[1724846157694,0.10835955,60162.0,60161.0,0.00741859]
[1724846157912,0.11919551,60162.0,60161.0,0.00741859]
[1724846158182,0.11919551,60162.0,60155.0,0.332473]
[1724846158183,0.11919551,60162.0,60159.0,0.166225]
[1724846158402,0.10835955,60162.0,60161.0,0.00729402]
[1724846158617,0.10835955,60162.0,60161.0,0.004]
[1724846158836,0.10835955,60162.0,60161.0,0.01129402]
[1724846159048,0.10835955,60162.0,60161.0,0.004]
[1724846159293,0.10835955,60162.0,60161.0,0.01429402]
[1724846159512,0.10835955,60162.0,60161.0,0.007]
[1724846159729,0.13581591,60162.0,60161.0,0.007]
[1724846159940,0.17095955,60162.0,60161.0,0.007]
[1724846160158,0.17095955,60162.0,60161.0,0.01135824]
[1724846160373,0.17511588,60162.0,60161.0,0.004]
[1724846160591,0.17511588,60162.0,60161.0,0.01135824]
[1724846160592,0.74114297,60162.0,60161.0,0.01135824]
[1724846160808,0.74114297,60162.0,60155.0,0.0009009]
[1724846160809,0.171234,60156.0,60155.0,0.0009009]
[1724846161030,0.31529088,60156.0,60155.0,0.0009009]
[1724846161257,0.98022688,60156.0,60155.0,0.0009009]
[1724846161494,1.07894957,60156.0,60155.0,0.0009009]
[1724846161965,0.64775888,60156.0,60155.0,0.0009009]
[1724846162173,0.14905688,60156.0,60155.0,0.0009009]
[1724846162591,0.14905688,60156.0,60155.0,0.00829687]
[1724846162775,0.14905688,60156.0,60155.0,0.0009009]
[1724846162997,0.31529088,60156.0,60155.0,0.00929687]
[1724846163349,0.15605688,60156.0,60155.0,0.0019009]
[1724846163572,0.15605688,60156.0,60155.0,0.0009009]
[1724846163573,1.03626099,60156.0,60155.0,0.0009009]
[1724846163738,1.03426099,60156.0,60155.0,0.00829687]
[1724846163946,1.03426099,60156.0,60155.0,0.0009009]
[1724846163947,1.06432612,60156.0,60155.0,0.0009009]
[1724846164095,1.07032612,60156.0,60155.0,0.0019009]
[1724846164508,1.07032612,60156.0,60155.0,0.0009009]
[1724846164509,0.03922201,60156.0,60155.0,0.0009009]
[1724846164771,0.04522201,60156.0,60155.0,0.00933179]
[1724846164959,0.21145601,60156.0,60155.0,0.0019009]
[1724846165159,0.20145601,60156.0,60155.0,0.00833514]
[1724846165382,0.53392401,60156.0,60155.0,0.00833514]
[1724846165544,0.56989452,60156.0,60155.0,0.00933514]
[1724846165748,0.56789452,60156.0,60155.0,0.0019009]
[1724846165952,0.56089452,60156.0,60155.0,0.0009009]
[1724846166318,0.56189452,60156.0,60155.0,0.0009009]
[1724846166899,0.56089452,60156.0,60155.0,0.0009009]
[1724846167234,0.56289452,60156.0,60155.0,0.0009009]
[1724846167843,0.89536252,60156.0,60155.0,0.0009009]
[1724846168046,0.97266252,60156.0,60155.0,0.0009009]
[1724846168502,0.97366252,60156.0,60155.0,0.0009009]
[1724846169122,0.97166252,60156.0,60155.0,0.0009009]
[1724846169671,1.36873052,60156.0,60155.0,0.0009009]
[1724846169895,1.86744052,60156.0,60155.0,0.0009009]
[1724846170123,1.86844052,60156.0,60155.0,0.0009009]
[1724846170568,1.86644052,60156.0,60155.0,0.0009009]
[1724846170803,1.86544052,60156.0,60155.0,0.0009009]
[1724846171094,1.87344052,60156.0,60155.0,0.0019009]
[1724846171318,1.87244052,60156.0,60155.0,0.0019009]
[1724846171548,1.87944052,60156.0,60155.0,0.0029009]
[1724846172197,1.87944052,60156.0,60144.0,0.0008998]
[1724846172198,0.166256,60149.0,60144.0,0.1640667]
[1724846172417,0.332492,60152.0,60145.0,0.166263]
[1724846172418,0.00415712,60148.0,60145.0,0.166263]
[1724846172641,0.00415712,60148.0,60145.0,0.17369309]
[1724846172859,0.005,60146.0,60145.0,0.17369309]
[1724846173069,0.00915709,60146.0,60145.0,0.17369309]
[1724846173295,0.00915709,60146.0,60145.0,0.00743009]
[1724846173775,0.00915709,60146.0,60145.0,0.00843009]
[1724846174205,0.50794309,60146.0,60145.0,0.00743009]
[1724846174429,0.171267,60144.0,60143.0,0.0009009]
[1724846174671,1.00666969,60144.0,60143.0,0.0009009]
[1724846174890,1.33920469,60144.0,60143.0,0.0009009]
[1724846176449,1.34020469,60144.0,60143.0,0.0059009]
[1724846176885,1.33920469,60144.0,60143.0,0.0009009]
[1724846177108,1.34020469,60144.0,60143.0,0.0009009]
[1724846177391,1.75203969,60144.0,60143.0,0.0009009]
[1724846177608,1.81243969,60144.0,60143.0,0.0009009]
[1724846177829,0.005,60132.0,60131.0,0.0968018]
[1724846178045,0.00915806,60132.0,60131.0,0.2631048]
[1724846178259,0.00915806,60132.0,60131.0,0.0968018]
[1724846179222,0.03522971,60132.0,60131.0,0.0968018]
[1724846179451,0.53513071,60132.0,60131.0,0.0968018]
[1724846179676,0.86973171,60132.0,60131.0,0.0968018]
[1724846179905,0.84166006,60132.0,60131.0,0.0968018]
[1724846180137,0.84066006,60132.0,60131.0,0.0968018]
[1724846180360,0.84066006,60132.0,60131.0,0.1008018]
[1724846180583,0.50805906,60132.0,60131.0,0.10113811]
[1724846180820,0.50805906,60132.0,60131.0,0.09713811]
[1724846181028,0.50905906,60132.0,60131.0,0.09713811]
[1724846181283,0.84166006,60132.0,60131.0,0.09713811]
[1724846181925,0.50905906,60132.0,60131.0,0.09713811]
[1724846184264,0.53513308,60132.0,60131.0,0.09803901]
[1724846186026,0.86773408,60132.0,60131.0,0.09803901]
[1724846186222,0.53513308,60132.0,60131.0,0.09803901]
[1724846186656,0.61793308,60132.0,60131.0,0.09803901]
[1724846186858,0.95053408,60132.0,60131.0,0.09803901]
[1724846187461,0.95053408,60132.0,60131.0,0.09278857]
[1724846187863,0.61793308,60132.0,60131.0,0.09278857]
[1724846189529,0.95053408,60132.0,60131.0,0.09278857]
[1724846189733,0.61793308,60132.0,60131.0,0.09278857]
[1724846190363,0.53513308,60132.0,60131.0,0.09278857]
[1724846191184,0.53513308,60132.0,60131.0,0.23858857]
[1724846191393,0.53513308,60132.0,60131.0,1.07010557]
[1724846191394,0.03207402,60132.0,60131.0,1.07010557]
[1724846191609,0.02977402,60132.0,60131.0,1.40271257]
[1724846195193,0.02977402,60132.0,60131.0,1.07010557]
[1724846195407,0.02977402,60132.0,60131.0,0.73749857]
[1724846195618,0.02977402,60132.0,60131.0,0.09278857]
[1724846195816,0.0339321,60132.0,60131.0,0.09278861]
[1724846197280,0.0347511,60132.0,60131.0,0.09278861]
[1724846199879,0.2614511,60132.0,60131.0,0.09278861]
[1724846200090,1.51198471,60132.0,60131.0,0.09278861]
[1724846200295,1.48721069,60132.0,60131.0,0.09278861]
[1724846201470,1.40058908,60132.0,60131.0,0.08821112]
[1724846202549,1.73519008,60132.0,60131.0,0.08821112]
[1724846202759,1.92299008,60132.0,60131.0,0.08821112]
[1724846203246,1.93299008,60132.0,60131.0,0.08821112]
[1724846204095,1.94699008,60132.0,60131.0,0.08821112]
[1724846204304,2.01444411,60132.0,60131.0,0.08821112]
[1724846204509,2.00044411,60132.0,60131.0,0.08821112]
[1724846204923,1.93299008,60132.0,60131.0,0.08821112]
[1724846205160,1.94699008,60132.0,60131.0,0.08821112]
[1724846205811,1.93299008,60132.0,60131.0,0.08821112]
[1724846206014,1.96085404,60132.0,60131.0,0.08821112]
[1724846207271,1.94685404,60132.0,60131.0,0.08821112]
[1724846207673,1.95927197,60132.0,60131.0,0.08821112]
[1724846207786,1.94527197,60132.0,60131.0,0.08821112]
[1724846208008,2.09982361,60132.0,60131.0,0.08821112]
[1724846208414,2.11382361,60132.0,60131.0,0.08821112]
[1724846209075,1.94527197,60132.0,60131.0,0.08821112]
[1724846209356,1.95927197,60132.0,60131.0,0.08821112]
[1724846210028,1.94527197,60132.0,60131.0,0.08838164]
[1724846210817,1.95927197,60132.0,60131.0,0.08838164]
[1724846210957,2.48342461,60132.0,60131.0,0.08838164]
[1724846211380,2.53315405,60132.0,60131.0,0.08838164]
[1724846211591,2.48342461,60132.0,60131.0,0.08838164]
[1724846212858,2.58288349,60132.0,60131.0,0.08838164]
[1724846212977,2.81602561,60132.0,60131.0,0.08838164]
[1724846213175,2.81602561,60132.0,60117.0,0.009009]
[1724846213176,1.16965789,60118.0,60117.0,0.009009]
[1724846213382,2.19724594,60118.0,60117.0,0.009009]
[1724846213899,2.53492494,60118.0,60117.0,0.00951588]
[1724846214080,2.56792494,60118.0,60117.0,0.00951588]
[1724846214287,2.6987164,60118.0,60117.0,0.00951588]
[1724846214946,2.7127164,60118.0,60117.0,0.00951588]
[1724846215355,2.6987164,60118.0,60117.0,0.00951588]
[1724846215813,2.7107164,60118.0,60117.0,0.00951588]
[1724846216172,2.6987164,60118.0,60117.0,0.00951588]
[1724846216583,2.7127164,60118.0,60117.0,0.00951588]
[1724846216861,2.3800374,60118.0,60117.0,0.00951588]
[1724846217020,2.24924594,60118.0,60117.0,0.00951588]
[1724846217403,2.23524594,60118.0,60117.0,0.00951588]
[1724846217599,2.26324594,60118.0,60117.0,0.00951588]
[1724846218341,2.24924594,60118.0,60117.0,0.00951588]
[1724846218539,2.26324594,60118.0,60117.0,0.00951588]
[1724846218893,2.32274222,60118.0,60117.0,0.00951588]
[1724846219119,2.30874222,60118.0,60117.0,0.00951588]
[1724846219367,2.32274222,60118.0,60117.0,0.00951588]
[1724846219759,2.30874222,60118.0,60117.0,0.00951588]
[1724846220315,2.32274222,60118.0,60117.0,0.00951588]
[1724846220943,1.91856694,60118.0,60117.0,0.00951588]
[1724846221170,1.75366694,60118.0,60117.0,0.00951588]
[1724846221380,1.74866694,60118.0,60117.0,0.00951588]
[1724846221515,1.75366694,60118.0,60117.0,0.00951588]
[1724846222601,1.74866694,60118.0,60117.0,0.00951588]
[1724846223014,1.75366694,60118.0,60117.0,0.00951588]
[1724846223202,1.74866694,60118.0,60117.0,0.00951588]
[1724846223355,0.62999189,60118.0,60117.0,0.07441588]
[1724846223526,1.36168889,60118.0,60117.0,0.00951588]
[1724846223734,1.44238889,60118.0,60117.0,0.00951588]
[1724846223955,1.64866694,60118.0,60117.0,0.00951588]
[1724846224586,1.81721858,60118.0,60117.0,0.00951588]
[1724846226235,1.82721858,60118.0,60117.0,0.00951588]
[1724846226385,1.03900989,60118.0,60117.0,0.00951588]
[1724846226584,1.03900989,60118.0,60117.0,0.09011588]
[1724846227622,1.03874322,60118.0,60117.0,0.09011588]
[1724846227972,1.37142222,60118.0,60117.0,0.09011588]
[1724846228409,1.03874322,60118.0,60117.0,0.09011588]
[1724846229064,1.37142222,60118.0,60117.0,0.00934706]
[1724846231078,2.16163091,60118.0,60117.0,0.00934706]
[1724846231328,2.30353091,60118.0,60117.0,0.00934706]
[1724846231963,1.96885191,60118.0,60117.0,0.00934706]
[1724846232151,1.71960027,60118.0,60117.0,0.00934706]
[1724846234397,2.05227927,60118.0,60117.0,0.00934706]
[1724846234578,1.71960027,60118.0,60117.0,0.00934706]
[1724846236104,2.05227927,60118.0,60117.0,0.00934706]
[1724846237756,2.05427927,60118.0,60117.0,0.00934706]
[1724846237957,2.22283091,60118.0,60117.0,0.00934706]
[1724846238590,2.32283091,60118.0,60117.0,0.00934706]
[1724846239247,2.32083091,60118.0,60117.0,0.00934706]
[1724846243182,2.15227927,60118.0,60117.0,0.00934706]
[1724846243412,1.75840027,60118.0,60117.0,0.00934706]
[1724846243611,1.47142222,60118.0,60117.0,0.00934706]
[1724846244373,0.53972522,60118.0,60117.0,0.17568906]
[1724846244584,0.53972522,60118.0,60117.0,0.00934706]
[1724846244808,0.70606422,60118.0,60117.0,0.00934706]
[1724846245312,0.69206422,60118.0,60117.0,0.00934706]
[1724846245612,1.02460513,60118.0,60117.0,0.00934706]
[1724846245870,1.03460513,60118.0,60117.0,0.00934706]
[1724846246038,1.01060513,60118.0,60117.0,0.00934706]
[1724846246179,1.01060513,60118.0,60117.0,0.00928012]
[1724846246180,1.02060513,60118.0,60117.0,0.00928012]
[1724846246416,0.68792613,60118.0,60117.0,0.00928012]
[1724846246669,0.67792613,60118.0,60117.0,0.09098012]
[1724846247170,0.68492613,60118.0,60117.0,0.09098012]
[1724846247585,1.02460513,60118.0,60117.0,0.09098012]
[1724846248025,1.35728413,60118.0,60117.0,0.00928012]
[1724846248239,1.81797701,60118.0,60117.0,0.00928012]
[1724846248448,1.99495824,60118.0,60117.0,0.00928012]
[1724846248652,2.02021703,60118.0,60117.0,0.00928012]
[1724846248882,1.99557701,60118.0,60117.0,0.00928012]
[1724846249110,1.98857701,60118.0,60117.0,0.00928012]
[1724846249325,1.98157701,60118.0,60117.0,0.00928012]
[1724846249536,1.99257701,60118.0,60117.0,0.00928012]
[1724846251913,2.03257701,60118.0,60117.0,0.00928012]
[1724846252315,2.01857701,60118.0,60117.0,0.00928012]
[1724846252518,2.35625601,60118.0,60117.0,0.00928012]
[1724846252733,2.37525601,60118.0,60117.0,0.00928012]
[1724846252936,2.54352004,60118.0,60117.0,0.00928012]
[1724846253141,2.54355423,60118.0,60117.0,0.00928012]
[1724846253789,2.13976135,60118.0,60117.0,0.00928012]
[1724846254033,1.98546313,60118.0,60117.0,0.00928012]
[1724846254254,2.30614213,60118.0,60117.0,0.00928012]
[1724846254460,2.31814213,60118.0,60117.0,0.00928012]
[1724846254668,2.32014213,60118.0,60117.0,0.00928012]
[1724846254907,2.48869377,60118.0,60117.0,0.00928012]
[1724846255321,2.47469377,60118.0,60117.0,0.00928012]
[1724846255524,2.46069377,60118.0,60117.0,0.00928012]
[1724846255726,2.47469377,60118.0,60117.0,0.00928012]
[1724846255967,2.47469377,60118.0,60117.0,0.009009]
[1724846256172,2.48869377,60118.0,60117.0,0.009009]
[1724846256550,2.47469377,60118.0,60117.0,0.009009]
[1724846256942,2.48869377,60118.0,60117.0,0.009009]
[1724846257433,2.48951377,60118.0,60117.0,0.009009]
[1724846259119,2.48751377,60118.0,60117.0,0.009009]
[1724846259683,2.31896213,60118.0,60117.0,0.009009]
[1724846260339,2.32096213,60118.0,60117.0,0.009009]
[1724846262919,2.32064758,60118.0,60117.0,0.009009]
[1724846269341,2.65332658,60118.0,60117.0,0.009009]
[1724846270056,2.63932658,60118.0,60117.0,0.009009]
[1724846270344,2.80787822,60118.0,60117.0,0.009009]
[1724846270568,2.82187822,60118.0,60117.0,0.009009]
[1724846270793,2.65332658,60118.0,60117.0,0.009009]
[1724846271264,2.63932658,60118.0,60117.0,0.009009]
[1724846271725,2.65332658,60118.0,60117.0,0.009009]
[1724846280854,0.00256258,60106.0,60101.0,0.0822]
[1724846281086,1.29352768,60106.0,60101.0,0.0822]
[1724846281320,2.18363514,60106.0,60101.0,0.0822]
[1724846281527,2.18363518,60106.0,60101.0,0.0822]
[1724846281779,2.53138018,60106.0,60097.0,0.1475]
[1724846282009,2.56055414,60106.0,60097.0,0.1475]
[1724846282270,2.57255414,60106.0,60097.0,0.1475]
[1724846282528,2.66645414,60106.0,60094.0,0.091209]
[1724846282783,2.72815414,60106.0,60094.0,0.091209]
[1724846283025,2.71615414,60106.0,60094.0,0.091209]
[1724846283253,2.71815414,60106.0,60094.0,0.091209]
[1724846283517,2.77357838,60106.0,60094.0,0.009009]
[1724846283757,2.77357838,60106.0,60093.0,0.009009]
[1724846283758,1.50721158,60094.0,60093.0,0.009009]
[1724846283998,2.11592158,60094.0,60093.0,0.009009]
[1724846284302,2.47173258,60094.0,60093.0,0.009009]
[1724846285834,2.13892158,60094.0,60093.0,0.009009]
[1724846285838,2.26325865,60094.0,60093.0,0.009009]
[1724846286064,2.13892158,60094.0,60093.0,0.009009]
[1724846286291,2.2415344,60094.0,60093.0,0.009009]
[1724846286513,2.25239682,60094.0,60093.0,0.009009]
[1724846286737,2.13892158,60094.0,60093.0,0.009009]
[1724846286968,2.15292158,60094.0,60093.0,0.009009]
[1724846287206,1.79011058,60094.0,60093.0,0.009009]
[1724846287454,2.09191848,60094.0,60093.0,0.091209]
[1724846287688,2.14163352,60094.0,60093.0,0.091209]
[1724846287931,2.15763352,60094.0,60093.0,0.091209]
[1724846288175,2.10791848,60094.0,60093.0,0.091209]
[1724846288422,2.15063478,60094.0,60093.0,0.091209]
[1724846288654,2.21478427,60094.0,60093.0,0.091209]
[1724846288884,2.20078427,60094.0,60093.0,0.091209]
[1724846289610,2.15106797,60094.0,60093.0,0.009009]
[1724846289853,2.16506797,60094.0,60093.0,0.009009]
[1724846290074,2.15106797,60094.0,60093.0,0.009009]
[1724846290326,2.29978906,60094.0,60093.0,0.009009]
[1724846290559,2.38948906,60094.0,60093.0,0.009009]
[1724846290783,2.33406482,60094.0,60093.0,0.009009]
[1724846291025,2.27236482,60094.0,60093.0,0.009009]
[1724846291265,2.21021533,60094.0,60093.0,0.009009]
[1724846291736,2.135627,60094.0,60093.0,0.009009]
[1724846292499,2.10479715,60094.0,60093.0,0.009009]
[1724846292728,2.11879715,60094.0,60093.0,0.009009]
[1724846292956,2.10559135,60094.0,60093.0,0.009009]
[1724846293202,2.13559135,60094.0,60093.0,0.009009]
[1724846293627,2.25770958,60094.0,60093.0,0.009009]
[1724846295303,2.59052058,60094.0,60093.0,0.009009]
[1724846295625,2.33960958,60094.0,60093.0,0.009009]
[1724846295841,2.57294534,60094.0,60093.0,0.009009]
[1724846296218,2.24013434,60094.0,60093.0,0.009009]
[1724846296418,2.13559135,60094.0,60093.0,0.009009]
[1724846296594,2.2349321,60094.0,60093.0,0.009009]
[1724846297032,2.5677431,60094.0,60093.0,0.009009]
[1724846298031,2.2349321,60094.0,60093.0,0.009009]
[1724846298851,2.5677431,60094.0,60093.0,0.009009]
[1724846299092,2.63695399,60094.0,60093.0,0.009009]
[1724846299258,2.71144965,60094.0,60093.0,0.009009]
[1724846300100,2.37863865,60094.0,60093.0,0.009009]
[1724846300281,2.21008701,60094.0,60093.0,0.009009]
[1724846300643,2.20807999,60094.0,60093.0,0.009009]
[1724846301264,2.21007999,60094.0,60093.0,0.009009]
[1724846303134,2.54289099,60094.0,60093.0,0.009009]
[1724846303377,2.23490954,60094.0,60093.0,0.009009]
[1724846303595,2.40346118,60094.0,60093.0,0.009009]
[1724846303808,2.73626593,60094.0,60093.0,0.009009]
[1724846304429,2.73708493,60094.0,60093.0,0.009009]
[1724846305707,2.73710312,60094.0,60093.0,0.009009]
[1724846305910,2.73710312,60094.0,60093.0,0.00927084]
[1724846306929,2.40429212,60094.0,60093.0,0.00927084]
[1724846307132,2.12161615,60094.0,60093.0,0.00927084]
[1724846307560,2.22094628,60094.0,60093.0,0.00927084]
[1724846309468,2.12161615,60094.0,60093.0,0.00927084]
[1724846310067,2.194128,60094.0,60093.0,0.00927084]
[1724846310291,2.11961615,60094.0,60093.0,0.00927084]
[1724846310691,1.7946381,60094.0,60093.0,0.07007084]
[1724846310909,1.4618271,60094.0,60093.0,0.14737084]
[1724846311556,1.1290161,60094.0,60093.0,0.14737084]
[1724846312440,1.1010161,60094.0,60093.0,0.14737084]
[1724846312784,1.1290161,60094.0,60093.0,0.14737084]
[1724846312991,0.6962051,60094.0,60093.0,0.14737084]
[1724846313196,0.5158001,60094.0,60093.0,0.14737084]
[1724846313343,0.5148001,60094.0,60093.0,0.64659584]
[1724846313545,0.5148001,60094.0,60093.0,0.97941284]
[1724846314142,0.5148001,60094.0,60093.0,0.64659584]
[1724846314833,0.5278001,60094.0,60093.0,0.64659584]
[1724846315224,0.5148001,60094.0,60093.0,0.64659584]
[1724846315431,0.5038001,60094.0,60093.0,0.64659584]
[1724846315642,0.5048001,60094.0,60093.0,0.64659584]
[1724846316069,0.5018001,60094.0,60093.0,0.31377884]
[1724846316286,0.5018001,60094.0,60093.0,0.14837084]
[1724846316501,0.5018001,60094.0,60093.0,0.31477884]
[1724846316915,0.5018001,60094.0,60093.0,0.31577884]
[1724846317119,0.5018001,60094.0,60093.0,0.31477884]
[1724846317368,0.5018001,60094.0,60093.0,0.31577884]
[1724846318606,0.5018001,60094.0,60093.0,0.31477884]
[1724846319139,0.5018001,60094.0,60093.0,0.31577884]
[1724846320132,0.5018001,60094.0,60093.0,0.98141284]
[1724846320343,0.5018001,60094.0,60093.0,0.64859584]
[1724846320896,0.5018001,60094.0,60093.0,0.64870871]
[1724846321317,0.5018001,60094.0,60093.0,0.64870872]
[1724846321465,0.5018001,60094.0,60093.0,0.31589172]
[1724846322498,0.5018001,60094.0,60093.0,0.64870872]
[1724846322716,0.499529,60094.0,60093.0,0.64870872]
[1724846322916,0.5018001,60094.0,60093.0,0.64870872]
[1724846323333,0.5018001,60094.0,60093.0,0.64870873]
[1724846325013,0.5018001,60094.0,60093.0,0.14948373]
[1724846325014,1.0010161,60094.0,60093.0,0.14948373]
[1724846325184,1.43392871,60094.0,60093.0,0.01138373]
[1724846325390,1.7286381,60094.0,60093.0,0.01138373]
[1724846325996,1.7286381,60094.0,60093.0,0.00938373]
[1724846326244,1.7376381,60094.0,60093.0,0.00938373]
[1724846330512,1.8148381,60094.0,60093.0,0.00938373]
[1724846330741,1.8148381,60094.0,60093.0,0.00938374]
[1724846331791,1.8098381,60094.0,60093.0,0.00938374]
[1724846331997,1.8058381,60094.0,60093.0,0.00938374]
[1724846332412,1.8198381,60094.0,60093.0,0.00938374]
[1724846333371,1.8338381,60094.0,60093.0,0.00938374]
[1724846333815,1.97827456,60094.0,60093.0,0.00938374]
[1724846334250,1.9338381,60094.0,60093.0,0.00938374]
[1724846335197,1.7946381,60094.0,60093.0,0.00938374]
[1724846340109,1.9421381,60094.0,60093.0,0.00956093]
[1724846340892,1.99197081,60094.0,60093.0,0.00956093]
[1724846341082,1.9421381,60094.0,60093.0,0.00956093]
[1724846341313,2.16052245,60094.0,60093.0,0.00956093]
[1724846341528,2.16252245,60094.0,60093.0,0.00956093]
[1724846341723,2.21035517,60094.0,60093.0,0.00956093]
[1724846341927,2.23727153,60094.0,60093.0,0.00956093]
[1724846342921,2.23729794,60094.0,60093.0,0.00956093]
[1724846343121,2.55018247,60094.0,60093.0,0.00956093]
[1724846343354,2.3049491,60094.0,60093.0,0.00956093]
[1724846343688,2.4295573,60094.0,60093.0,0.00956093]
[1724846344653,2.44421191,60094.0,60093.0,0.00956093]
[1724846347531,2.31960371,60094.0,60093.0,0.00956093]
[1724846347954,2.66241471,60094.0,60093.0,0.00956093]
[1724846348083,2.83096635,60094.0,60093.0,0.00956094]
[1724846348281,2.83096635,60094.0,60093.0,0.00973531]
[1724846348616,2.98054961,60094.0,60093.0,0.00973531]
[1724846349020,2.96655853,60094.0,60093.0,0.00973531]
[1724846349233,2.95255853,60094.0,60093.0,0.00973531]
[1724846349396,2.61974753,60094.0,60093.0,0.00973531]
[1724846349593,2.45119589,60094.0,60093.0,0.00973531]
[1724846349799,2.46519589,60094.0,60093.0,0.00973531]
[1724846350003,2.47919589,60094.0,60093.0,0.00973531]
[1724846351264,2.46519589,60094.0,60093.0,0.00973531]
[1724846351643,2.47919589,60094.0,60093.0,0.00973531]
[1724846352080,2.64774753,60094.0,60093.0,0.00973531]
[1724846352421,2.47919589,60094.0,60093.0,0.00973531]